Workbook

Sheet MENÚ

Sheet DATOS GENERALES
B2: SECCIÓN N°01: DATOS GENERALES DEL PROYECTO
B7: UNIDAD FORMULADORA (UF)
B9: Nivel de gobierno :
B11: Entidad :
B13: Nombre de la UF: (Nombre de la Unidad Orgánica a la que pertenece la UF)
B15: Responsable de la UF
C17: a
B21: Función
B23: División funcional
B25: Grupo funcional
B27: Sector responsable
B29: Tipología de proyecto
B34: Naturaleza de intervención | J34: Objeto de intervención | Q34: Localización
B43: Servicios públicos con brecha identificada y priorizada
B45: Nombre del Indicador de brecha de acceso a servicios | M45: Unidad de medida: | Q45: Espacio geográfico | U45: Año | Y45: Valor
B49: Nota: Se puede incluir más de un servicio público con brecha y más de un indicador
B50: Contribución del Cierre de Brecha (Valor) | F50: Valor:
B51: Nota: Se refiere a la capacidad de producción que aporta el proyecto (incremental). Su estimación proviene de la diferencia entre la oferta con proyecto (tamaño) respecto a la oferta optimizada sin proyecto (cuando corresponda).

Sheet AREA DE ESTUDIO
B1: SECCIÓN N°02: DIAGNÓSTICO DEL ÁREA DE ESTUDIO
B3: DIAGNÓSTICO
B5: ÁREA DE ESTUDIO
B7: 2.01 Localización del área de estudio del proyecto
B9: N° | C9: Departamento | G9: Provincia | H9: Provincia | K9: Distrito | O9: Localidad/Centro poblado | S9: Ubigeo
B10: 1
B11: 2
B12: 3
B13: Nota: Si el área de estudio del proyecto abarca más de una localización, se podrán añadir más localizaciones
B15: 2.02 Localización del área de influencia del proyecto
B17: N° | C17: Departamento | G17: Provincia | H17: Provincia | K17: Distrito | O17: Localidad/Centro poblado | S17: Ubigeo
B18: 1
B19: 2
B20: 3
B21: Nota: Si el área de influencia del proyecto abarca más de una localización, se podrán añadir más localizaciones
B23: 2.03 Croquis con la ubicación de los beneficiarios o los demandantes actuales y futuros y la localización de los elementos de la UP (en caso exista) o la UP que se conformará producto de las alternativas de solución.
T26: Leyenda del croquis:
B28: Fuente de información:

Sheet UNIDAD PRODUCTORA
B1: SECCIÓN N°03: DIAGNÓSTICO DE LA UNIDAD PRODUCTORA
B3: LA UNIDAD PRODUCTORA DE BIENES Y SERVICIOS (En caso exista)
B5: 3.01 Nombre de la Unidad Productora:
B7: 3.02 Código de la unidad productora (en caso el Sector lo haya definido)*
B8: *Son obligatorios en caso de: colegios (código modular), instituciones prestadores de servicios de salud (código de establecimiento)
B9: Nota: Se puede agregar más de un código de identificación cuando el proyecto comprenda más de una Unidad Productora
B11: 3.03 Localización geográfica de la Unidad Productora
B13: N° | C13: Departamento | F13: Provincia | I13: Distrito | L13: Localidad/Centro poblado | O13: Coordenadas geográficas
B14: 1
B15: 2
B16: 3
B17: Nota: Si la Unidad Productora del proyecto abarca más de una localización o si el proyecto presenta más de una Unidad Productora, se podrán añadir más localizaciones
B19: 3.04 Diagnóstico de la Unidad Productora

Sheet PROBLEMA-OBJETIVO
B1: SECCIÓN N°04: PROBLEMA/OBJETIVO
B3: 4.01 DEFINICIÓN DEL PROBLEMA, SUS CAUSAS Y EFECTOS
B5: Descripción del problema central | F5: Indicador | J5: Descripción del indicador | M5: UM | N5: Valor
B9: Causas Directas (CD) | F9: Sustento (evidencias) | J9: Causas indirectas (CI)
B11: C.D 1: | J11: C.I. 1.1
J12: …
J13: C.I. 1.n
B14: … | J14: …
J15: …
J16: …
B17: C.D "n": | J17: C.I. n.1
J18: …
J19: C.I. n.n
B21: Efectos Directos (ED) | F21: Sustento (evidencias) | J21: Efectos Indirectos (EI)
B23: E.D 1: | J23: E.I. 1.1
J24: …
J25: E.I. 1.n
B26: … | J26: …
J27: …
J28: …
B29: E.D "n": | J29: E.I. n.1
J30: …
J31: E.I. n.n
B35: 4.02 DEFINICIÓN DE LOS OBJETIVOS DEL PROYECTO
B37: Descripción del objetivo central | F37: Indicador* | J37: Descripción del indicador* | M37: UM* | N37: Valor*
B40: * Esta información proviene de la información registrada en la tabla 1.04
B42: Medios fundamentales
B44: N° | C44: Medios fundamentales (componentes) | G44: Acciones
B46: 1
B49: …
B52: n
B54: n
B57: Fines directos (FD) | F57: Fines Indirectos (FI)
B59: F.D 1: | F59: F.I. 1.1
F60: …
F61: F.I. 1.n
B62: … | F62: …
F63: …
F64: …
B65: F.D "n": | F65: F.I. n.1
F66: …
F67: F.I. n.n
B70: 4.03 DESCRIPCIÓN DE LAS ALTERNATIVAS DE SOLUCIÓN AL PROBLEMA
B72: Descripción de Alternativas de Solución
B74: Alternativa 1:
B77: …
B80: Alternativa "n":

Sheet HORIZONTE DE EVALUACIÓN
B1: SECCIÓN N°05: HORIZONTE DE EVALUACIÓN
B3: FORMULACIÓN
B5: 5.01 HORIZONTE DE EVALUACIÓN
H6: Alternativa 1 | J6: Alternativa n
B7: Periodo en años de la ejecución del proyecto
B8: Nota: Debe considerar los plazos del Estudios Definitivos (incluyendo los plazos de contratación) y la Ejecución Física (Incluye los plazos de contratación y liquidación)
B10: Periodo en años del funcionamiento del proyecto
B12: Número de años del horizonte de evaluación | H12: =+H7+H10 -> 0 | J12: =+J7+J10 -> 0

Sheet BRECHA DE SERVICIO
B1: SECCIÓN N°06: BRECHA DE SERVICIO
B3: FORMULACIÓN
B6: ESTUDIO DE MERCADO DEL SERVICIO PÚBLICO
B8: 6.01 Definición y caracterización del servicio o de la cartera de servicios
B11: 6.02 Análisis de la demanda del servicio
B13: Servicio | C13: Descripción | E13: Unidad de Medida | F13: Año 1 | G13: Año 2 | H13: Año 3 | I13: …. | J13: …. | K13: …. | L13: …. | M13: Año n
B15: Servicio 1
B16: Servicio 2
B17: Servicio 3
B18: Servicio "n"
B20: Parámetros, supuestos considerados y fuentes de información
B23: 6.03 Análisis de la oferta del servicio
B25: Servicio | C25: Descripción | E25: Unidad de Medida | F25: Año 1 | G25: Año 2 | H25: Año 3 | I25: …. | J25: …. | K25: …. | L25: …. | M25: Año n
B27: Servicio 1
B28: Servicio 2
B29: Servicio 3
B30: Servicio "n"
B32: Parámetros, supuestos considerados y fuentes de información
B35: 6.04 Brecha del servicio (balance oferta optimizada sin proyecto-demanda con proyecto)
B37: Servicios con brecha | C37: Descripción | E37: Unidad de Medida | F37: Año 1 | G37: Año 2 | H37: Año 3 | I37: …. | J37: …. | K37: …. | L37: …. | M37: Año 10
B39: Servicio 1
B40: Servicio 2
B41: Servicio 3
B42: Servicio "n"

Sheet ANALISIS TÉCNICO
B1: SECCIÓN N°07: ANÁLISIS TÉCNICO
B3: ANÁLISIS TÉCNICO
B4: Este análisis sustenta la elección de una alternativa técnica de tamaño, localización y tecnología, en mérito a las características particulares de cada tipología de proyecto de inversión.
B6: 7.01 ANÁLISIS DE TAMAÑO (¿Cuánto producir?)
B8: Descripción de la alternativa técnica seleccionada
B12: 7.02 ANÁLISIS DE LOCALIZACIÓN (¿Dónde producir?)
B14: Descripción de la alternativa técnica seleccionada
B18: 7.03 ANÁLISIS DE TECNOLOGÍA (¿Cómo producir?)
B20: Descripción de la alternativa técnica seleccionada

Sheet COSTO TOTAL
B1: SECCIÓN N° 08: COSTOS DEL PROYECTO
B3: Estructura de costos
B5: 8.01 Costo de ejecución física de las acciones
B6: Acción sobre los activos | G6: Tipo de factor productivo | I6: Unidad Física | K6: Dimensión física* | M6: Costo unitario | N6: Costo total*
B7: Componente /acción | E7: Activos | I7: Unidad de medida | J7: Cantidad | K7: Unidad de medida | L7: Cantidad
B10: Componente 1:
B11: Acción1
B12: …
B13: Acción "n"
B14: Componente 2
B15: Acción1
B16: …
B17: Acción "n"
B18: Componente "n"
B19: Acción 1
B20: …
B21: Acción "n"
B22: Medidas de reducción del riesgo y de mitigación ambiental
B24: SubTotal de costos de inversión | M24: =+SUM(N10:N22) -> 0
B25: *Según corresponda
B26: Nota: este cuadro se repite por cada unidad productora intervenida por el proyecto de inversión
B27: La estimación de los costos deberá ser sustentada a nivel de ingeniería conceptual
B29: Otros costos de inversión
B31: Otros costos | E31: Costos a precios de mercado
B33: Gestión del proyecto
B34: Expediente técnico o documento equivalente
B35: Supervisión
B36: Liquidación
B37: Otros (línea de base, etc.)
B39: Subtotal de otros costos de inversión | E39: =+SUM(E33:E37) -> 0
B41: Costo Total de inversión | E41: =+E39+M24 -> 0 | G41: Anexar los costos detallados
B44: 8.02 Costos de reinversiones
B45: Reinversiones | D45: Activos | F45: Tipo de factor productivo | H45: AÑOS (Soles)
H46: 1 | I46: 2 | J46: 3 | K46: 4 | L46: 5 | M46: … | N46: … | O46: … | P46: n
D48: a1
D49: a2 | E49: a2
D50: … | E50: …
D51: a1 | E51: a1
D52: a2 | E52: a2
D53: … | E53: …
D54: a1 | E54: a1
D55: a2 | E55: a2
D56: … | E56: …
B58: 8.03 Costos de operación y mantenimiento con y sin proyecto
B59: Fecha prevista de inicio de operaciones: (mes / año):
B60: Horizonte de funcionamiento (años)
B63: COSTOS* | D63: ÍTEM | F63: AÑOS (Soles)
F64: 1 | G64: 2 | H64: 3 | I64: 4 | J64: 5 | K64: … | L64: … | M64: … | N64: n
B66: SIN PROYECTO | D66: OPERACIÓN
D67: MANTENIMIENTO
B68: CON PROYECTO | D68: OPERACIÓN
D69: MANTENIMIENTO
B70: INCREMENTAL | D70: OPERACIÓN
D71: MANTENIMIENTO
B73: * Agregar anexo de costos
B75: 8.04 Cronograma de inversión de metas financieras
B77: Fecha prevista de inicio de ejecución: | H77: (mes y año)
B78: Tipo de periodo
B79: Número de periodos | H79: (valor)
B81: Acción sobre los activos | G81: Tipo de factor productivo | I81: Cronograma de inversión | Q81: Costo estimado de inversión a precios de mercado (Soles)
B82: Componente /acción | E82: Activos | I82: 1 | J82: 2 | K82: 3 | L82: ………. | M82: ………. | N82: ………. | O82: ………. | P82: n
B85: Componente 1:
B86: Acción1
B87: …
B88: Acción "n"
B89: Componente 2
B90: Acción1
B91: …
B92: Acción "n"
B93: Componente "n"
B94: Acción 1
B95: …
B96: Acción "n"
B97: Medidas de la gestión del riesgo y de las medidas de mitigación
B98: Sub total :
B100: Otros costos | D100: 1 | E100: 2 | F100: 3 | G100: ………. | H100: ………. | I100: ………. | J100: ………. | K100: n | L100: Costos a precio de mercado
B102: Gestión del proyecto
B103: Expediente técnico
B104: Supervisión
B105: Liquidación
B106: Estudio de Línea Base
B107: Sub total :
B108: Costo total de la Inversión :
B109: Nota: La gestión del proyecto, el expediente técnico o documento equivalente, la supervisión y la liquidación no son items. Los gastos generales, la utilidad y el IGV forman parte de los ítem.
B112: Monto de inversión financiado con fondos públicos
B113: ¿El proyecto tiene aporte de los beneficiarios?
B115: SÍ | E115: Aporte de los beneficiarios (S/):
B117: NO | E117: Financiado con fondos públicos (S/):
B119: 8.05 Cronograma de metas físicas
B121: Acción sobre los activos | F121: Tipo de factor productivo | H121: Unidad de medida representativa | J121: Periodo | Q121: Total Meta Física
B122: Acción | D122: Activos
J123: Periodo 1 | K123: Periodo 2 | L123: … | M123: … | N123: … | O123: … | P123: Periodo n
J124: Meta física | K124: Meta física | L124: Meta física | M124: Meta física | N124: Meta física | O124: Meta física | P124: Meta física
B133: Nota: La unidad de medida representativa proviene de las unidades físicas, a excepción del ítem de Infraestructura que proviene de las dimensiones físicas.

Sheet EVALUACION SOCIAL
B1: SECCIÓN N° 09: EVALUACIÓN SOCIAL
B3: EVALUACIÓN
B5: 9.01 INDICADORES DE RENTABILIDAD SOCIAL
B7: Tipo | C7: Criterio de elección** | F7: Alternativa 1 | G7: Alternativa 2 | H7: Alternativa n
B9: Costo / Beneficio* | C9: Valor Actual Neto (VAN)
C10: Tasa Interna de Retorno (TIR)
C11: Valor Anual Equivalente (VAE)
B12: Costo / Eficiencia* | C12: Valor Actual de los Costos (VAC)
C13: Costo Anual Equivalente (CAE)
C14: Costo por capacidad de producción
C15: Costo por beneficiario directo
B16: * A precios sociales
B17: ** En función a la tipología del proyecto se definirá cual es el criterio de elección más conveniente

Sheet SOSTENIBILIDAD
B1: SECCIÓN N°10: SOSTENIBILIDAD
B3: 10.01 Descripción de la capacidad institucional en la sostenibilidad del proyecto
B5: Ítem | G5: Descripción | K5: Fuente de información
B7: Órgano técnico responsable de la operación y mantenimiento del proyecto
B8: Análisis de la disponibilidad oportuna de recursos para la operación y mantenimiento
B9: Descripción de los arreglos institucionales para la fase de Funcionamiento
B10: Descripción de la capacidad de gestión del operador
B14: 10.02 Gestión integral de los riesgos
B16: Tipo de riesgo (operacional, contexto de cambio climático, mercado, financiero, legal, …) | E16: Descripción del riesgo | H16: Probabilidad de ocurrencia* (baja, media, alta) | J16: Impacto (bajo, moderado, mayor) | L16: Medidas de mitigación
B22: * Dicha probabilidad resultará de un juicio técnico sobre qué tan posible es la ocurrencia del riesgo que afecte el desempeño del proyecto.

Sheet GESTIÓN
B1: SECCIÓN N°11: GESTIÓN DEL PROYECTO
F3: Años | G3: Meses
B4: 11.01 Plan de implementación
B6: Actividades del Plan de Implementación | F6: Fecha | H6: Órgano Responsable | J6: Periodo
F7: Inicio | G7: Fin | J7: 1 | K7: 2 | L7: 3 | M7: … | N7: n
B9: Expediente Técnico (ET) o Estudio Definitivo (ED)
B10: Proceso de selección
B11: Convocatoria
B12: Integración de Bases
B13: Buena Pro
B14: Suscripción del Contrato
B15: Elaboración del ET o ED
B16: Supervisión
B17: Proceso de selección
B18: Convocatoria
B19: Integración de Bases
B20: Buena Pro
B21: Suscripción del Contrato
B22: Supervisión del PI
B23: Ejecución
B24: Proceso de selección
B25: Convocatoria
B26: Integración de Bases
B27: Buena Pro
B28: Suscripción del Contrato
B29: Ejecución Contractual
B30: Acción 1
B31: …
B32: Acción "n"
B33: Recepción
B34: Liquidación física y financiera
B35: Transferencia
B37: 11.02 Modalidad de ejecución de proyecto
B39: Tipo de ejecución | G39: Marcar
B41: Administración directa
B42: Administración indirecta – por contrata
B43: Administración indirecta – Asociación Público Privado (APP)
B44: Administración indirecta – Núcleo Ejecutor
B45: Administración indirecta – Ley 29230 (Obras por Impuestos)
B47: 11.03 Fuente de financiamiento
B49: Fuente de Financiamiento | C49: Marcar | G49: Marcar
B51: Recursos ordinarios
B52: Recursos directamente recaudados
B53: Recursos por operaciones oficiales de crédito
B54: Donaciones y transferencias
B55: Recursos determinados
B57: En caso se seleccione como fuente de financiamiento ROOC, se deberá sustentar la estructuración financiera del monto de inversión del Proyecto.
B58: 11.04 Requerimientos institucionales y/o normativos
B59: (Referido a los aspectos técnicos y regulatorios que el proyecto deberá cumplir durante su fase de Ejecución y fase de Funcionamiento (como el saneamiento técnico legal, sustento de factibilidad de servicios de agua, desagüe y electricidad, certificado de parámetros urbanísticos, cumplimiento de permisos y autorizaciones, entre otros).

Sheet IMPACTO AMBIENTAL
B1: SECCIÓN N°12: IMPACTO AMBIENTAL
B4: 12.01 Matriz de impacto ambiental
B6: IMPACTOS NEGATIVOS | F6: MEDIDAS DE MITIGACIÓN | I6: COSTO (S/)
B8: Durante la Ejecución
B9: Impacto 1:
B10: Impacto n:
B11: Durante el Funcionamiento
B12: Impacto 1:
B13: Impacto n:

Sheet CONCLUSIONES
B2: SECCIÓN N°13: CONCLUSIONES Y RECOMENDACIONES
B4: 13.01 CONCLUSIONES Y RECOMENDACIONES
B6: Se debe indicar el resultado del proceso de formulación y evaluación del proyecto (viable o no viable) y detallar los principales argumentos que sustentan dicho resultado, en términos de lo siguiente: a. Cumplimiento de los tres atributos que definen la condición de viabilidad de un proyecto, en caso el proyecto resulte viable. Si el resultado es no viable, indicar qué atributo o atributos no se logró cumplir. b. Emitir un juicio técnico sobre la calidad y la pertinencia del grado de profundización de la información empleada para la elaboración de la ficha técnica, así como la consistencia y coherencia de los supuestos establecidos, las fuentes de información, las normas técnicas, los parámetros y metodologías empleadas, entre otros elementos claves relacionados con el fundamento técnico y económico de la decisión de inversión.

Sheet FIRMAS
B2: SECCIÓN N°14: FIRMAS
B4: 14.01 FIRMAS
B10: Preparado o supervisado por: | E10: ……………………………………………………………………………. | I10: Fecha: | J10: …………………………………………………………………………….
E11: Especialista de la UF o Responsable de la UF
B17: Declarado viable por: | E17: ……………………………………………………………………………. | I17: Fecha: | J17: …………………………………………………………………………….
E18: Responsable de la UF

Sheet DETALLE DEL COSTO TOTAL (hidden)
B2: Descripción | E2: Unidad de Medida | F2: Meta | G2: Costo Unitario | H2: Costo Total S/ | I2: Factor Corrección | J2: Costo Total S/ | L2: Cronograma de Ejecución (Trimestral) | U2: Cronograma de Ejecución Gantt (Trimestral) | AF2: Ejecución Financiera a precios privados en Soles (Trimestral) | AO2: Ejecución Financiera a precios sociales en Soles (Trimestral)
H3: P. Privados | J3: P. Sociales | L3: 1 | M3: 2 | N3: 3 | O3: 4 | P3: 5 | Q3: 6 | R3: 7 | S3: 8 | U3: 1 | W3: 2 | X3: 3 | Y3: 4 | Z3: 5 | AA3: 6 | AB3: 7 | AC3: 8 | AF3: 1 | AG3: 2 | AH3: 3 | AI3: 4 | AJ3: 5 | AK3: 6 | AL3: 7 | AM3: 8 | AO3: 1 | AP3: 2 | AQ3: 3 | AR3: 4 | AS3: 5 | AT3: 6 | AU3: 7 | AV3: 8
B5: COMPONENTE 1.Fortalecimiento de capacidades para la planificación y generación de información temática para … | H5: =+H6+H28 -> 665410.96 | J5: =+J6+J28 -> 591763.8644 | AF5: =+AF6+AF28 -> 133090.96 | AG5: 135136 | AH5: 88944 | AI5: 88944 | AJ5: 75296 | AK5: 48000 | AL5: 48000 | AM5: 48000 | AN5: =+H5-SUM(AF5:AM5) -> 0 | AO5: =+AO6+AO28 -> 116270.9831 | AP5: 118004.0678 | AQ5: 78858.30508 | AR5: 78858.30508 | AS5: 67292.20339 | AT5: 44160 | AU5: 44160 | AV5: 44160 | AW5: =+J5-SUM(AO5:AV5) -> 0
B6: Acción 1.1 | C6: … | H6: =+SUM(H7:H27) -> 528930.96 | J6: =+SUM(J7:J27) -> 476102.8475 | AF6: =+SUM(AF7:AF27) -> 133090.96 | AG6: =+SUM(AG7:AG27) -> 107840 | AH6: 48000 | AI6: 48000 | AJ6: 48000 | AK6: 48000 | AL6: 48000 | AM6: 48000 | AN6: =+H6-SUM(AF6:AM6) -> 0 | AO6: =+SUM(AO7:AO27) -> 116270.9831 | AP6: =+SUM(AP7:AP27) -> 94871.86441 | AQ6: 44160 | AR6: 44160 | AS6: 44160 | AT6: 44160 | AU6: 44160 | AV6: 44160 | AW6: =+J6-SUM(AO6:AV6) -> 0
B7: Act. 1.1.1 | C7: YYYYY | AN7: 0 | AW7: 0
C8: Tarea 1.1.1.1 | D8: ZZZZ | E8: Taller | F8: 5 | G8: 4000 | H8: =+G8*F8 -> 20000 | I8: =1/(1.18) -> 0.8474576271 | J8: =+I8*H8 -> 16949.15254 | L8: 1 | M8: 0 | N8: 0 | O8: 0 | P8: 0 | Q8: 0 | R8: 0 | S8: 0 | V8: =+L8 -> 1 | W8: 0 | X8: 0 | Y8: 0 | Z8: 0 | AA8: 0 | AB8: 0 | AC8: 0 | AF8: =+L8*$H8 -> 20000 | AG8: 0 | AH8: 0 | AI8: 0 | AJ8: 0 | AK8: 0 | AL8: 0 | AM8: 0 | AN8: 0 | AO8: =+L8*$J8 -> 16949.15254 | AP8: =+M8*$J8 -> 0 | AQ8: 0 | AR8: 0 | AS8: 0 | AT8: 0 | AU8: 0 | AV8: 0 | AW8: 0
C9: Tarea 1.1.1.2 | D9: KKKK | E9: Publicación | F9: 1 | G9: =(1136*1.18)*2 -> 2680.96 | H9: =+G9*F9 -> 2680.96 | I9: =1/(1.18) -> 0.8474576271 | J9: =+I9*H9 -> 2272 | L9: 1 | M9: 0 | N9: 0 | O9: 0 | P9: 0 | Q9: 0 | R9: 0 | S9: 0 | V9: 1 | W9: 0 | X9: 0 | Y9: 0 | Z9: 0 | AA9: 0 | AB9: 0 | AC9: 0 | AF9: 2680.96 | AG9: 0 | AH9: 0 | AI9: 0 | AJ9: 0 | AK9: 0 | AL9: 0 | AM9: 0 | AN9: 0 | AO9: =+L9*$J9 -> 2272 | AP9: 0 | AQ9: 0 | AR9: 0 | AS9: 0 | AT9: 0 | AU9: 0 | AV9: 0 | AW9: 0
B10: Act. 1.1.2 | C10: Acompañamiento Técnico | AN10: 0 | AW10: 0
C11: Tarea 1.1.2.1 | D11: Especialista SIG | E11: mes | F11: =12*2 -> 24 | G11: 6000 | H11: =+G11*F11 -> 144000 | I11: 0.92 | J11: =+I11*H11 -> 132480 | L11: 0.125 | M11: 0.125 | N11: 0.125 | O11: 0.125 | P11: 0.125 | Q11: 0.125 | R11: 0.125 | S11: 0.125 | V11: =+L11 -> 0.125 | W11: 0.125 | X11: 0.125 | Y11: 0.125 | Z11: 0.125 | AA11: 0.125 | AB11: 0.125 | AC11: 0.125 | AF11: =+L11*$H11 -> 18000 | AG11: 18000 | AH11: 18000 | AI11: 18000 | AJ11: 18000 | AK11: 18000 | AL11: 18000 | AM11: 18000 | AN11: 0 | AO11: =+L11*$J11 -> 16560 | AP11: 16560 | AQ11: 16560 | AR11: 16560 | AS11: 16560 | AT11: 16560 | AU11: 16560 | AV11: 16560 | AW11: 0
C12: Tarea 1.1.2.2 | D12: Especialista Forestal | E12: mes | F12: =12*2 -> 24 | G12: 6000 | H12: 144000 | I12: 0.92 | J12: 132480 | L12: 0.125 | M12: 0.125 | N12: 0.125 | O12: 0.125 | P12: 0.125 | Q12: 0.125 | R12: 0.125 | S12: 0.125 | V12: 0.125 | W12: 0.125 | X12: 0.125 | Y12: 0.125 | Z12: 0.125 | AA12: 0.125 | AB12: 0.125 | AC12: 0.125 | AF12: 18000 | AG12: 18000 | AH12: 18000 | AI12: 18000 | AJ12: 18000 | AK12: 18000 | AL12: 18000 | AM12: 18000 | AN12: 0 | AO12: 16560 | AP12: 16560 | AQ12: 16560 | AR12: 16560 | AS12: 16560 | AT12: 16560 | AU12: 16560 | AV12: 16560 | AW12: 0
C13: Tarea 1.1.2.3 | D13: Sociologo | E13: mes | F13: =12*2 -> 24 | G13: 4000 | H13: 96000 | I13: 0.92 | J13: 88320 | L13: 0.125 | M13: 0.125 | N13: 0.125 | O13: 0.125 | P13: 0.125 | Q13: 0.125 | R13: 0.125 | S13: 0.125 | V13: 0.125 | W13: 0.125 | X13: 0.125 | Y13: 0.125 | Z13: 0.125 | AA13: 0.125 | AB13: 0.125 | AC13: 0.125 | AF13: 12000 | AG13: 12000 | AH13: 12000 | AI13: 12000 | AJ13: 12000 | AK13: 12000 | AL13: 12000 | AM13: 12000 | AN13: 0 | AO13: 11040 | AP13: 11040 | AQ13: 11040 | AR13: 11040 | AS13: 11040 | AT13: 11040 | AU13: 11040 | AV13: 11040 | AW13: 0
B14: Act. 1.1.3 | C14: … | AN14: 0 | AW14: 0
C15: Tarea 1.1.3.1 | D15: … | AN15: 0 | AW15: 0
D16: … | E16: Mes | F16: 1 | G16: 2000 | H16: =+G16*F16 -> 2000 | I16: =1/(1.18) -> 0.8474576271 | J16: =+I16*H16 -> 1694.915254 | L16: 1 | M16: 0 | N16: 0 | O16: 0 | P16: 0 | Q16: 0 | R16: 0 | S16: 0 | V16: =+L16 -> 1 | W16: 0 | X16: 0 | Y16: 0 | Z16: 0 | AA16: 0 | AB16: 0 | AC16: 0 | AF16: =+L16*$H16 -> 2000 | AG16: 0 | AH16: 0 | AI16: 0 | AJ16: 0 | AK16: 0 | AL16: 0 | AM16: 0 | AN16: 0 | AO16: =+L16*$J16 -> 1694.915254 | AP16: 0 | AQ16: 0 | AR16: 0 | AS16: 0 | AT16: 0 | AU16: 0 | AV16: 0 | AW16: 0
D17: … | E17: Mes | F17: 1 | G17: 2250 | H17: =+G17*F17 -> 2250 | I17: 0.8474576271 | J17: 1906.779661 | L17: 1 | M17: 0 | N17: 0 | O17: 0 | P17: 0 | Q17: 0 | R17: 0 | S17: 0 | V17: 1 | W17: 0 | X17: 0 | Y17: 0 | Z17: 0 | AA17: 0 | AB17: 0 | AC17: 0 | AF17: 2250 | AG17: 0 | AH17: 0 | AI17: 0 | AJ17: 0 | AK17: 0 | AL17: 0 | AM17: 0 | AN17: 0 | AO17: 1906.779661 | AP17: 0 | AQ17: 0 | AR17: 0 | AS17: 0 | AT17: 0 | AU17: 0 | AV17: 0 | AW17: 0
D18: … | E18: Global | F18: 1 | G18: 1000 | H18: 1000 | I18: 0.8474576271 | J18: 847.4576271 | L18: 1 | M18: 0 | N18: 0 | O18: 0 | P18: 0 | Q18: 0 | R18: 0 | S18: 0 | V18: 1 | W18: 0 | X18: 0 | Y18: 0 | Z18: 0 | AA18: 0 | AB18: 0 | AC18: 0 | AF18: 1000 | AG18: 0 | AH18: 0 | AI18: 0 | AJ18: 0 | AK18: 0 | AL18: 0 | AM18: 0 | AN18: 0 | AO18: 847.4576271 | AP18: 0 | AQ18: 0 | AR18: 0 | AS18: 0 | AT18: 0 | AU18: 0 | AV18: 0 | AW18: 0
D19: … | E19: Global | F19: 1 | G19: 1000 | H19: 1000 | I19: 0.8474576271 | J19: 847.4576271 | L19: 1 | M19: 0 | N19: 0 | O19: 0 | P19: 0 | Q19: 0 | R19: 0 | S19: 0 | V19: 1 | W19: 0 | X19: 0 | Y19: 0 | Z19: 0 | AA19: 0 | AB19: 0 | AC19: 0 | AF19: 1000 | AG19: 0 | AH19: 0 | AI19: 0 | AJ19: 0 | AK19: 0 | AL19: 0 | AM19: 0 | AN19: 0 | AO19: 847.4576271 | AP19: 0 | AQ19: 0 | AR19: 0 | AS19: 0 | AT19: 0 | AU19: 0 | AV19: 0 | AW19: 0
D20: … | E20: Millar | F20: 10 | G20: 600 | H20: 6000 | I20: 0.8474576271 | J20: 5084.745763 | L20: 1 | M20: 0 | N20: 0 | O20: 0 | P20: 0 | Q20: 0 | R20: 0 | S20: 0 | V20: 1 | W20: 0 | X20: 0 | Y20: 0 | Z20: 0 | AA20: 0 | AB20: 0 | AC20: 0 | AF20: 6000 | AG20: 0 | AH20: 0 | AI20: 0 | AJ20: 0 | AK20: 0 | AL20: 0 | AM20: 0 | AN20: 0 | AO20: 5084.745763 | AP20: 0 | AQ20: 0 | AR20: 0 | AS20: 0 | AT20: 0 | AU20: 0 | AV20: 0 | AW20: 0
D21: … | E21: Millar | F21: 10 | G21: 600 | H21: 6000 | I21: 0.8474576271 | J21: 5084.745763 | L21: 1 | M21: 0 | N21: 0 | O21: 0 | P21: 0 | Q21: 0 | R21: 0 | S21: 0 | V21: 1 | W21: 0 | X21: 0 | Y21: 0 | Z21: 0 | AA21: 0 | AB21: 0 | AC21: 0 | AF21: 6000 | AG21: 0 | AH21: 0 | AI21: 0 | AJ21: 0 | AK21: 0 | AL21: 0 | AM21: 0 | AN21: 0 | AO21: 5084.745763 | AP21: 0 | AQ21: 0 | AR21: 0 | AS21: 0 | AT21: 0 | AU21: 0 | AV21: 0 | AW21: 0
C22: Tarea 1.1.3.2 | D22: … | E22: Taller | F22: 3 | G22: =+G8 -> 4000 | H22: 12000 | I22: 0.8474576271 | J22: 10169.49153 | L22: 1 | M22: 0 | N22: 0 | O22: 0 | P22: 0 | Q22: 0 | R22: 0 | S22: 0 | V22: 1 | W22: 0 | X22: 0 | Y22: 0 | Z22: 0 | AA22: 0 | AB22: 0 | AC22: 0 | AF22: 12000 | AG22: 0 | AH22: 0 | AI22: 0 | AJ22: 0 | AK22: 0 | AL22: 0 | AM22: 0 | AN22: 0 | AO22: 10169.49153 | AP22: 0 | AQ22: 0 | AR22: 0 | AS22: 0 | AT22: 0 | AU22: 0 | AV22: 0 | AW22: 0
C23: Tarea 1.1.3.3 | D23: … | E23: día/persona | F23: =20*F22 -> 60 | G23: 320 | H23: 19200 | I23: 0.8474576271 | J23: 16271.18644 | L23: 1 | M23: 0 | N23: 0 | O23: 0 | P23: 0 | Q23: 0 | R23: 0 | S23: 0 | V23: 1 | W23: 0 | X23: 0 | Y23: 0 | Z23: 0 | AA23: 0 | AB23: 0 | AC23: 0 | AF23: 19200 | AG23: 0 | AH23: 0 | AI23: 0 | AJ23: 0 | AK23: 0 | AL23: 0 | AM23: 0 | AN23: 0 | AO23: 16271.18644 | AP23: 0 | AQ23: 0 | AR23: 0 | AS23: 0 | AT23: 0 | AU23: 0 | AV23: 0 | AW23: 0
B24: Act. 1.1.4 | C24: Elaboración del Plan de Implementación … | AN24: 0 | AW24: 0
C25: Tarea 1.1.4.1 | D25: Talleres de formulación … | E25: Taller | F25: 5 | G25: =+G22 -> 4000 | H25: 20000 | I25: =1/(1.18) -> 0.8474576271 | J25: 16949.15254 | L25: 0.2 | M25: 0.8 | N25: 0 | O25: 0 | P25: 0 | Q25: 0 | R25: 0 | S25: 0 | V25: =+L25 -> 0.2 | W25: 0.8 | X25: 0 | Y25: 0 | Z25: 0 | AA25: 0 | AB25: 0 | AC25: 0 | AF25: =+L25*$H25 -> 4000 | AG25: 16000 | AH25: 0 | AI25: 0 | AJ25: 0 | AK25: 0 | AL25: 0 | AM25: 0 | AN25: 0 | AO25: =+L25*$J25 -> 3389.830508 | AP25: 13559.32203 | AQ25: 0 | AR25: 0 | AS25: 0 | AT25: 0 | AU25: 0 | AV25: 0 | AW25: 0
C26: Tarea 1.1.4.2 | D26: Taller de presentación y validación … | E26: Taller | F26: 2 | G26: =+G25 -> 4000 | H26: 8000 | I26: 0.8474576271 | J26: 6779.661017 | L26: 0 | M26: 1 | N26: 0 | O26: 0 | P26: 0 | Q26: 0 | R26: 0 | S26: 0 | V26: 0 | W26: 1 | X26: 0 | Y26: 0 | Z26: 0 | AA26: 0 | AB26: 0 | AC26: 0 | AF26: 0 | AG26: 8000 | AH26: 0 | AI26: 0 | AJ26: 0 | AK26: 0 | AL26: 0 | AM26: 0 | AN26: 0 | AO26: 0 | AP26: 6779.661017 | AQ26: 0 | AR26: 0 | AS26: 0 | AT26: 0 | AU26: 0 | AV26: 0 | AW26: 0
C27: Tarea 1.1.4.3 | D27: … | E27: día/persona | F27: =20*(F26+F25) -> 140 | G27: 320 | H27: 44800 | I27: 0.8474576271 | J27: 37966.10169 | L27: 0.2 | M27: 0.8 | N27: 0 | O27: 0 | P27: 0 | Q27: 0 | R27: 0 | S27: 0 | V27: 0.2 | W27: 0.8 | X27: 0 | Y27: 0 | Z27: 0 | AA27: 0 | AB27: 0 | AC27: 0 | AF27: 8960 | AG27: 35840 | AH27: 0 | AI27: 0 | AJ27: 0 | AK27: 0 | AL27: 0 | AM27: 0 | AN27: =+H27-SUM(AF27:AM27) -> 0 | AO27: 7593.220339 | AP27: 30372.88136 | AQ27: 0 | AR27: 0 | AS27: 0 | AT27: 0 | AU27: 0 | AV27: 0 | AW27: 0
B28: Acción 1.2 | C28: … | H28: =+SUM(H29:H34) -> 136480 | J28: =+SUM(J29:J34) -> 115661.0169 | AF28: =+SUM(AF29:AF34) -> 0 | AG28: 27296 | AH28: 40944 | AI28: 40944 | AJ28: 27296 | AK28: 0 | AL28: 0 | AM28: 0 | AN28: 0 | AO28: =+SUM(AO29:AO34) -> 0 | AP28: 23132.20339 | AQ28: 34698.30508 | AR28: 34698.30508 | AS28: 23132.20339 | AT28: 0 | AU28: 0 | AV28: 0 | AW28: 0
B29: Act. 1.2.1 | C29: Materiales de fortalecimiento de capacidades | E29: Mapa | F29: 12 | G29: 2000 | H29: =+G29*F29 -> 24000 | I29: =1/(1.18) -> 0.8474576271 | J29: 20338.98305 | L29: 0 | M29: 0.2 | N29: 0.3 | O29: 0.3 | P29: 0.2 | Q29: 0 | R29: 0 | S29: 0 | V29: =+L29 -> 0 | W29: 0.2 | X29: 0.3 | Y29: 0.3 | Z29: 0.2 | AA29: 0 | AB29: 0 | AC29: 0 | AF29: =+L29*$H29 -> 0 | AG29: 4800 | AH29: 7200 | AI29: 7200 | AJ29: 4800 | AK29: 0 | AL29: 0 | AM29: 0 | AN29: 0 | AO29: =+L29*$J29 -> 0 | AP29: 4067.79661 | AQ29: 6101.694915 | AR29: 6101.694915 | AS29: 4067.79661 | AT29: 0 | AU29: 0 | AV29: 0 | AW29: 0
B30: Act. 1.2.2 | C30: Herramientas participativas | E30: Global | F30: 1 | G30: 10000 | H30: 10000 | I30: 0.8474576271 | J30: 8474.576271 | L30: 0 | M30: 0.2 | N30: 0.3 | O30: 0.3 | P30: 0.2 | Q30: 0 | R30: 0 | S30: 0 | V30: 0 | W30: 0.2 | X30: 0.3 | Y30: 0.3 | Z30: 0.2 | AA30: 0 | AB30: 0 | AC30: 0 | AF30: 0 | AG30: 2000 | AH30: 3000 | AI30: 3000 | AJ30: 2000 | AK30: 0 | AL30: 0 | AM30: 0 | AN30: 0 | AO30: 0 | AP30: 1694.915254 | AQ30: 2542.372881 | AR30: 2542.372881 | AS30: 1694.915254 | AT30: 0 | AU30: 0 | AV30: 0 | AW30: 0
B31: Act. 1.2.3 | C31: Cursos especializados para … | AN31: 0 | AW31: 0
C32: Tarea 1.2.1.1 | D32: Talleres de capacitación | E32: Taller | F32: 12 | G32: =+G8 -> 4000 | H32: =+G32*F32 -> 48000 | I32: =1/(1.18) -> 0.8474576271 | J32: 40677.9661 | L32: 0 | M32: 0.2 | N32: 0.3 | O32: 0.3 | P32: 0.2 | Q32: 0 | R32: 0 | S32: 0 | V32: =+L32 -> 0 | W32: 0.2 | X32: 0.3 | Y32: 0.3 | Z32: 0.2 | AA32: 0 | AB32: 0 | AC32: 0 | AF32: =+L32*$H32 -> 0 | AG32: 9600 | AH32: 14400 | AI32: 14400 | AJ32: 9600 | AK32: 0 | AL32: 0 | AM32: 0 | AN32: 0 | AO32: =+L32*$J32 -> 0 | AP32: 8135.59322 | AQ32: 12203.38983 | AR32: 12203.38983 | AS32: 8135.59322 | AT32: 0 | AU32: 0 | AV32: 0 | AW32: 0
C33: Tarea 1.2.1.2 | D33: Pasajes aéreos (I/V) | E33: Pasaje | F33: =4*F32 -> 48 | G33: =+G87 -> 495 | H33: 23760 | I33: 0.8474576271 | J33: 20135.59322 | L33: 0 | M33: 0.2 | N33: 0.3 | O33: 0.3 | P33: 0.2 | Q33: 0 | R33: 0 | S33: 0 | V33: 0 | W33: 0.2 | X33: 0.3 | Y33: 0.3 | Z33: 0.2 | AA33: 0 | AB33: 0 | AC33: 0 | AF33: 0 | AG33: 4752 | AH33: 7128 | AI33: 7128 | AJ33: 4752 | AK33: 0 | AL33: 0 | AM33: 0 | AN33: 0 | AO33: 0 | AP33: 4027.118644 | AQ33: 6040.677966 | AR33: 6040.677966 | AS33: 4027.118644 | AT33: 0 | AU33: 0 | AV33: 0 | AW33: 0
C34: Tarea 1.2.1.3 | D34: Viáticos | E34: día/persona | F34: =4*2*12 -> 96 | G34: 320 | H34: 30720 | I34: 0.8474576271 | J34: 26033.89831 | L34: 0 | M34: 0.2 | N34: 0.3 | O34: 0.3 | P34: 0.2 | Q34: 0 | R34: 0 | S34: 0 | V34: 0 | W34: 0.2 | X34: 0.3 | Y34: 0.3 | Z34: 0.2 | AA34: 0 | AB34: 0 | AC34: 0 | AF34: 0 | AG34: 6144 | AH34: 9216 | AI34: 9216 | AJ34: 6144 | AK34: 0 | AL34: 0 | AM34: 0 | AN34: 0 | AO34: 0 | AP34: 5206.779661 | AQ34: 7810.169492 | AR34: 7810.169492 | AS34: 5206.779661 | AT34: 0 | AU34: 0 | AV34: 0 | AW34: 0
B35: COMPONENTE 2.Suficiente y adecuado equipamiento para la generación, procesamiento, almacenamiento y distribución de información temática | H35: =+H36+H40 -> 452462 | J35: =+J36+J40 -> 383442.3729 | AF35: =+AF36+AF40 -> 0 | AG35: 278308 | AH35: 0 | AI35: 0 | AJ35: 0 | AK35: 0 | AL35: 0 | AM35: 174154 | AN35: 0 | AO35: =+AO36+AO40 -> 0 | AP35: 235854.2373 | AQ35: 0 | AR35: 0 | AS35: 0 | AT35: 0 | AU35: 0 | AV35: 147588.1356 | AW35: 0
B36: Acción 2.1 | C36: … | H36: =+SUM(H37:H39) -> 278308 | J36: =+SUM(J37:J39) -> 235854.2373 | AF36: =+SUM(AF37:AF39) -> 0 | AG36: 278308 | AH36: 0 | AI36: 0 | AJ36: 0 | AK36: 0 | AL36: 0 | AM36: 0 | AN36: 0 | AO36: =+SUM(AO37:AO39) -> 0 | AP36: 235854.2373 | AQ36: 0 | AR36: 0 | AS36: 0 | AT36: 0 | AU36: 0 | AV36: 0 | AW36: 0
B37: Act. 2.1.1 | C37: Hardware | E37: Global | F37: 1 | G37: 100000 | H37: =+G37*F37 -> 100000 | I37: =1/(1.18) -> 0.8474576271 | J37: =+I37*H37 -> 84745.76271 | L37: 0 | M37: 1 | N37: 0 | O37: 0 | P37: 0 | Q37: 0 | R37: 0 | S37: 0 | V37: =+L37 -> 0 | W37: 1 | X37: 0 | Y37: 0 | Z37: 0 | AA37: 0 | AB37: 0 | AC37: 0 | AF37: =+L37*$H37 -> 0 | AG37: 100000 | AH37: 0 | AI37: 0 | AJ37: 0 | AK37: 0 | AL37: 0 | AM37: 0 | AN37: 0 | AO37: =+L37*$J37 -> 0 | AP37: 84745.76271 | AQ37: 0 | AR37: 0 | AS37: 0 | AT37: 0 | AU37: 0 | AV37: 0 | AW37: 0
B38: Act. 2.1.2 | C38: Software: ESRI-ArcGIS Avanzado (Uso individual) v.10.5 | E38: Licencia | F38: 2 | G38: =74154 -> 74154 | H38: 148308 | I38: 0.8474576271 | J38: 125684.7458 | L38: 0 | M38: 1 | N38: 0 | O38: 0 | P38: 0 | Q38: 0 | R38: 0 | S38: 0 | V38: 0 | W38: 1 | X38: 0 | Y38: 0 | Z38: 0 | AA38: 0 | AB38: 0 | AC38: 0 | AF38: 0 | AG38: 148308 | AH38: 0 | AI38: 0 | AJ38: 0 | AK38: 0 | AL38: 0 | AM38: 0 | AN38: 0 | AO38: 0 | AP38: 125684.7458 | AQ38: 0 | AR38: 0 | AS38: 0 | AT38: 0 | AU38: 0 | AV38: 0 | AW38: 0
B39: Act. 2.1.3 | C39: Equipamiento menor (gps, drones,etc.) | E39: Global | F39: 1 | G39: 30000 | H39: 30000 | I39: 0.8474576271 | J39: 25423.72881 | L39: 0 | M39: 1 | N39: 0 | O39: 0 | P39: 0 | Q39: 0 | R39: 0 | S39: 0 | V39: 0 | W39: 1 | X39: 0 | Y39: 0 | Z39: 0 | AA39: 0 | AB39: 0 | AC39: 0 | AF39: 0 | AG39: 30000 | AH39: 0 | AI39: 0 | AJ39: 0 | AK39: 0 | AL39: 0 | AM39: 0 | AN39: 0 | AO39: 0 | AP39: 25423.72881 | AQ39: 0 | AR39: 0 | AS39: 0 | AT39: 0 | AU39: 0 | AV39: 0 | AW39: 0
B40: Acción 2.2 | C40: … | H40: =+H41+H42 -> 174154 | J40: =+J41+J42 -> 147588.1356 | AF40: =+AF41+AF42 -> 0 | AG40: 0 | AH40: 0 | AI40: 0 | AJ40: 0 | AK40: 0 | AL40: 0 | AM40: 174154 | AN40: 0 | AO40: =+AO41+AO42 -> 0 | AP40: 0 | AQ40: 0 | AR40: 0 | AS40: 0 | AT40: 0 | AU40: 0 | AV40: 147588.1356 | AW40: 0
B41: Act. 2.1.1 | C41: Hardware | E41: Global | F41: 1 | G41: 100000 | H41: 100000 | I41: =1/(1.18) -> 0.8474576271 | J41: =+I41*H41 -> 84745.76271 | L41: 0 | M41: 0 | N41: 0 | O41: 0 | P41: 0 | Q41: 0 | R41: 0 | S41: 1 | V41: =+L41 -> 0 | W41: 0 | X41: 0 | Y41: 0 | Z41: 0 | AA41: 0 | AB41: 0 | AC41: 1 | AF41: =+L41*$H41 -> 0 | AG41: 0 | AH41: 0 | AI41: 0 | AJ41: 0 | AK41: 0 | AL41: 0 | AM41: 100000 | AN41: 0 | AO41: =+L41*$J41 -> 0 | AP41: 0 | AQ41: 0 | AR41: 0 | AS41: 0 | AT41: 0 | AU41: 0 | AV41: 84745.76271 | AW41: 0
B42: Act. 2.1.2 | C42: Software: ESRI-ArcGIS Avanzado (Uso individual) v.10.5 | E42: Licencia | F42: 1 | G42: =+G38 -> 74154 | H42: 74154 | I42: 0.8474576271 | J42: 62842.37288 | L42: 0 | M42: 0 | N42: 0 | O42: 0 | P42: 0 | Q42: 0 | R42: 0 | S42: 1 | V42: 0 | W42: 0 | X42: 0 | Y42: 0 | Z42: 0 | AA42: 0 | AB42: 0 | AC42: 1 | AF42: 0 | AG42: 0 | AH42: 0 | AI42: 0 | AJ42: 0 | AK42: 0 | AL42: 0 | AM42: 74154 | AN42: 0 | AO42: 0 | AP42: 0 | AQ42: 0 | AR42: 0 | AS42: 0 | AT42: 0 | AU42: 0 | AV42: 62842.37288 | AW42: 0
B43: COMPONENTE 3 .Bases de datos y mapas temáticos actualizados, integrados, compatibles y disponibles | H43: =+H44 -> 1898751 | J43: =+J44 -> 1609111.017 | AF43: =+AF44 -> 148511 | AG43: 364450 | AH43: 341666.6667 | AI43: 447061.6667 | AJ43: 522061.6667 | AK43: 75000 | AL43: 0 | AM43: 0 | AN43: 0 | AO43: =+AO44 -> 125856.7797 | AP43: 308855.9322 | AQ43: 289548.0226 | AR43: 378865.8192 | AS43: 442425.1412 | AT43: 63559.32203 | AU43: 0 | AV43: 0 | AW43: 0
B44: Acción 3.1 | C44: … | H44: =+SUM(H45:H52) -> 1898751 | J44: =+SUM(J45:J52) -> 1609111.017 | AF44: =+SUM(AF45:AF52) -> 148511 | AG44: 364450 | AH44: 341666.6667 | AI44: 447061.6667 | AJ44: 522061.6667 | AK44: 75000 | AL44: 0 | AM44: 0 | AN44: 0 | AO44: =+SUM(AO45:AO52) -> 125856.7797 | AP44: 308855.9322 | AQ44: 289548.0226 | AR44: 378865.8192 | AS44: 442425.1412 | AT44: 63559.32203 | AU44: 0 | AV44: 0 | AW44: 0
B45: Act. 3.1.1 | C45: Elaboración del Mapa Base | E45: Mapa | F45: 1 | G45: =+'[1]M1. Mapa Base'!H34 -> 148511 | H45: =+G45*F45 -> 148511 | I45: =1/(1.18) -> 0.8474576271 | J45: =+I45*H45 -> 125856.7797 | L45: 1 | M45: 0 | N45: 0 | O45: 0 | P45: 0 | Q45: 0 | R45: 0 | S45: 0 | V45: =+L45 -> 1 | W45: 0 | X45: 0 | Y45: 0 | Z45: 0 | AA45: 0 | AB45: 0 | AC45: 0 | AF45: =+L45*$H45 -> 148511 | AG45: 0 | AH45: 0 | AI45: 0 | AJ45: 0 | AK45: 0 | AL45: 0 | AM45: 0 | AN45: 0 | AO45: =+L45*$J45 -> 125856.7797 | AP45: 0 | AQ45: 0 | AR45: 0 | AS45: 0 | AT45: 0 | AU45: 0 | AV45: 0 | AW45: 0
B46: Act. 3.1.2 | C46: Elaboración del Mapa de Dinámica Poblacionales | E46: Mapa | F46: 1 | G46: =+'[1]M2. Centros Poblados'!H39 -> 128660 | H46: =+G46*F46 -> 128660 | I46: 0.8474576271 | J46: =+I46*H46 -> 109033.8983 | L46: 0 | M46: 1 | N46: 0 | O46: 0 | P46: 0 | Q46: 0 | R46: 0 | S46: 0 | V46: 0 | W46: 1 | X46: 0 | Y46: 0 | Z46: 0 | AA46: 0 | AB46: 0 | AC46: 0 | AF46: 0 | AG46: 128660 | AH46: 0 | AI46: 0 | AJ46: 0 | AK46: 0 | AL46: 0 | AM46: 0 | AN46: 0 | AO46: 0 | AP46: 109033.8983 | AQ46: 0 | AR46: 0 | AS46: 0 | AT46: 0 | AU46: 0 | AV46: 0 | AW46: 0
B47: Act. 3.1.3 | C47: Elaboración del Mapa Forestal | E47: Mapa | F47: 1 | G47: 200000 | H47: =+G47*F47 -> 200000 | I47: 0.8474576271 | J47: 169491.5254 | L47: 0 | M47: 0 | N47: 0 | O47: 0.5 | P47: 0.5 | Q47: 0 | R47: 0 | S47: 0 | V47: 0 | W47: 0 | X47: 0 | Y47: 0.5 | Z47: 0.5 | AA47: 0 | AB47: 0 | AC47: 0 | AF47: 0 | AG47: 0 | AH47: 0 | AI47: 100000 | AJ47: 100000 | AK47: 0 | AL47: 0 | AM47: 0 | AN47: 0 | AO47: 0 | AP47: 0 | AQ47: 0 | AR47: 84745.76271 | AS47: 84745.76271 | AT47: 0 | AU47: 0 | AV47: 0 | AW47: 0
B48: Act. 3.1.4 | C48: Elaboración del Mapa de Capacidad de Uso Mayor de las Tierras | E48: Mapa | F48: 1 | G48: 800000 | H48: =+G48*F48 -> 800000 | I48: 0.8474576271 | J48: 677966.1017 | L48: 0 | M48: 0 | N48: 0.3333333333 | O48: 0.3333333333 | P48: 0.3333333333 | Q48: 0 | R48: 0 | S48: 0 | V48: 0 | W48: 0 | X48: 0.3333333333 | Y48: 0.3333333333 | Z48: 0.3333333333 | AA48: 0 | AB48: 0 | AC48: 0 | AF48: 0 | AG48: 0 | AH48: 266666.6667 | AI48: 266666.6667 | AJ48: 266666.6667 | AK48: 0 | AL48: 0 | AM48: 0 | AN48: 0 | AO48: 0 | AP48: 0 | AQ48: 225988.7006 | AR48: 225988.7006 | AS48: 225988.7006 | AT48: 0 | AU48: 0 | AV48: 0 | AW48: 0
B49: Act. 3.1.5 | C49: Elaboración del Mapa de Ecosistemas priorizados para la conservación de la biodiversidad | E49: Mapa | F49: 1 | G49: =+'[1]M5. EPC'!H109 -> 160790 | H49: 160790 | I49: 0.8474576271 | J49: 136262.7119 | M49: 1 | N49: 0 | O49: 0 | P49: 0 | Q49: 0 | R49: 0 | S49: 0 | V49: 0 | W49: 1 | X49: 0 | Y49: 0 | Z49: 0 | AA49: 0 | AB49: 0 | AC49: 0 | AF49: 0 | AG49: 160790 | AH49: 0 | AI49: 0 | AJ49: 0 | AK49: 0 | AL49: 0 | AM49: 0 | AN49: 0 | AO49: 0 | AP49: 136262.7119 | AQ49: 0 | AR49: 0 | AS49: 0 | AT49: 0 | AU49: 0 | AV49: 0 | AW49: 0
B50: Act. 3.1.6 | C50: Elaboración del Mapa de Hábitats Críticos | E50: Mapa | F50: 1 | G50: =+'[1]M5. EPC'!H109 -> 160790 | H50: 160790 | I50: 0.8474576271 | J50: 136262.7119 | L50: 0 | M50: 0 | N50: 0 | O50: 0.5 | P50: 0.5 | Q50: 0 | R50: 0 | S50: 0 | V50: 0 | W50: 0 | X50: 0 | Y50: 0.5 | Z50: 0.5 | AA50: 0 | AB50: 0 | AC50: 0 | AF50: 0 | AG50: 0 | AH50: 0 | AI50: 80395 | AJ50: 80395 | AK50: 0 | AL50: 0 | AM50: 0 | AN50: 0 | AO50: 0 | AP50: 0 | AQ50: 0 | AR50: 68131.35593 | AS50: 68131.35593 | AT50: 0 | AU50: 0 | AV50: 0 | AW50: 0
B51: Act. 3.1.7 | C51: Elaboración del Mapa de Fisiografía | E51: Mapa | F51: 1 | G51: 150000 | H51: 150000 | I51: 0.8474576271 | J51: 127118.6441 | M51: 0.5 | N51: 0.5 | O51: 0 | P51: 0 | Q51: 0 | R51: 0 | S51: 0 | V51: 0 | W51: 0.5 | X51: 0.5 | Y51: 0 | Z51: 0 | AA51: 0 | AB51: 0 | AC51: 0 | AF51: 0 | AG51: 75000 | AH51: 75000 | AI51: 0 | AJ51: 0 | AK51: 0 | AL51: 0 | AM51: 0 | AN51: 0 | AO51: 0 | AP51: 63559.32203 | AQ51: 63559.32203 | AR51: 0 | AS51: 0 | AT51: 0 | AU51: 0 | AV51: 0 | AW51: 0
B52: Act. 3.1.8 | C52: Elaboración del Mapa de Uso Actual de la Tierra con enfásis en sistemas agroforestales | E52: Mapa | F52: 1 | G52: 150000 | H52: 150000 | I52: 0.8474576271 | J52: 127118.6441 | L52: 0 | M52: 0 | N52: 0 | P52: 0.5 | Q52: 0.5 | R52: 0 | S52: 0 | V52: 0 | W52: 0 | X52: 0 | Y52: 0 | Z52: 0.5 | AA52: 0.5 | AB52: 0 | AC52: 0 | AF52: 0 | AG52: 0 | AH52: 0 | AI52: 0 | AJ52: 75000 | AK52: 75000 | AL52: 0 | AM52: 0 | AN52: 0 | AO52: 0 | AP52: 0 | AQ52: 0 | AR52: 0 | AS52: 63559.32203 | AT52: 63559.32203 | AU52: 0 | AV52: 0 | AW52: 0
B53: COMPONENTE 4.Difusión y sensibilización sobre el proceso de zonificación forestal | H53: =+H54+H63 -> 179500 | J53: =+J54+J63 -> 154446.25 | AF53: =+AF54+AF63 -> 0 | AG53: 0 | AH53: 0 | AI53: 45500 | AJ53: 33500 | AK53: 50250 | AL53: 50250 | AM53: 0 | AN53: 0 | AO53: =+AO54+AO63 -> 0 | AP53: 0 | AQ53: 0 | AR53: 39025.25 | AS53: 28855.25 | AT53: 43282.875 | AU53: 43282.875 | AV53: 0 | AW53: 0
B54: Acción 4.1 | C54: … | H54: =+SUM(H55:H62) -> 51500 | J54: =+SUM(J55:J62) -> 43646.25 | AF54: =+SUM(AF55:AF62) -> 0 | AG54: 0 | AH54: 0 | AI54: 19900 | AJ54: 7900 | AK54: 11850 | AL54: 11850 | AM54: 0 | AN54: 0 | AO54: =+SUM(AO55:AO62) -> 0 | AP54: 0 | AQ54: 0 | AR54: 16865.25 | AS54: 6695.25 | AT54: 10042.875 | AU54: 10042.875 | AV54: 0 | AW54: 0
B55: Act. 4.1.1 | C55: Elaboración de cartillas informativas, afiches, difusión en radio, televisión y prensa, Portal web | AN55: 0 | AW55: 0
C56: Tarea 4.1.1.1 | D56: Spot Radial | E56: Mes | F56: 6 | G56: 2000 | H56: =+G56*F56 -> 12000 | I56: 0.8475 | J56: 10170 | L56: 0 | M56: 0 | N56: 0 | O56: 0.2 | P56: 0.2 | Q56: 0.3 | R56: 0.3 | S56: 0 | V56: =+L56 -> 0 | W56: 0 | X56: 0 | Y56: 0.2 | Z56: 0.2 | AA56: 0.3 | AB56: 0.3 | AC56: 0 | AF56: =+L56*$H56 -> 0 | AG56: 0 | AH56: 0 | AI56: 2400 | AJ56: 2400 | AK56: 3600 | AL56: 3600 | AM56: 0 | AN56: 0 | AO56: =+L56*$J56 -> 0 | AP56: 0 | AQ56: 0 | AR56: 2034 | AS56: 2034 | AT56: 3051 | AU56: 3051 | AV56: 0 | AW56: 0
C57: Tarea 4.1.1.2 | D57: Spot Televisivo | E57: Mes | F57: 6 | G57: 2250 | H57: 13500 | I57: 0.8475 | J57: 11441.25 | L57: 0 | M57: 0 | N57: 0 | O57: 0.2 | P57: 0.2 | Q57: 0.3 | R57: 0.3 | S57: 0 | V57: 0 | W57: 0 | X57: 0 | Y57: 0.2 | Z57: 0.2 | AA57: 0.3 | AB57: 0.3 | AC57: 0 | AF57: 0 | AG57: 0 | AH57: 0 | AI57: 2700 | AJ57: 2700 | AK57: 4050 | AL57: 4050 | AM57: 0 | AN57: 0 | AO57: 0 | AP57: 0 | AQ57: 0 | AR57: 2288.25 | AS57: 2288.25 | AT57: 3432.375 | AU57: 3432.375 | AV57: 0 | AW57: 0
C58: Tarea 4.1.1.3 | D58: Redes Sociales | E58: Mes | F58: 1 | G58: 2000 | H58: 2000 | I58: 0.8475 | J58: 1695 | L58: 0 | M58: 0 | N58: 0 | O58: 0.2 | P58: 0.2 | Q58: 0.3 | R58: 0.3 | S58: 0 | V58: 0 | W58: 0 | X58: 0 | Y58: 0.2 | Z58: 0.2 | AA58: 0.3 | AB58: 0.3 | AC58: 0 | AF58: 0 | AG58: 0 | AH58: 0 | AI58: 400 | AJ58: 400 | AK58: 600 | AL58: 600 | AM58: 0 | AN58: 0 | AO58: 0 | AP58: 0 | AQ58: 0 | AR58: 339 | AS58: 339 | AT58: 508.5 | AU58: 508.5 | AV58: 0 | AW58: 0
C59: Tarea 4.1.1.4 | D59: Portal Web GORE | E59: Mes | F59: 1 | G59: 2000 | H59: 2000 | I59: 0.8475 | J59: 1695 | L59: 0 | M59: 0 | N59: 0 | O59: 0.2 | P59: 0.2 | Q59: 0.3 | R59: 0.3 | S59: 0 | V59: 0 | W59: 0 | X59: 0 | Y59: 0.2 | Z59: 0.2 | AA59: 0.3 | AB59: 0.3 | AC59: 0 | AF59: 0 | AG59: 0 | AH59: 0 | AI59: 400 | AJ59: 400 | AK59: 600 | AL59: 600 | AM59: 0 | AN59: 0 | AO59: 0 | AP59: 0 | AQ59: 0 | AR59: 339 | AS59: 339 | AT59: 508.5 | AU59: 508.5 | AV59: 0 | AW59: 0
C60: Tarea 4.1.1.5 | D60: Tripticos | E60: Millar | F60: 10 | G60: 600 | H60: 6000 | I60: 0.8475 | J60: 5085 | L60: 0 | M60: 0 | N60: 0 | O60: 1 | P60: 0 | Q60: 0 | R60: 0 | S60: 0 | V60: 0 | W60: 0 | X60: 0 | Y60: 1 | Z60: 0 | AA60: 0 | AB60: 0 | AC60: 0 | AF60: 0 | AG60: 0 | AH60: 0 | AI60: 6000 | AJ60: 0 | AK60: 0 | AL60: 0 | AM60: 0 | AN60: 0 | AO60: 0 | AP60: 0 | AQ60: 0 | AR60: 5085 | AS60: 0 | AT60: 0 | AU60: 0 | AV60: 0 | AW60: 0
C61: Tarea 4.1.1.6 | D61: Afiches | E61: Millar | F61: 10 | G61: 600 | H61: 6000 | I61: 0.8475 | J61: 5085 | L61: 0 | M61: 0 | N61: 0 | O61: 1 | P61: 0 | Q61: 0 | R61: 0 | S61: 0 | V61: 0 | W61: 0 | X61: 0 | Y61: 1 | Z61: 0 | AA61: 0 | AB61: 0 | AC61: 0 | AF61: 0 | AG61: 0 | AH61: 0 | AI61: 6000 | AJ61: 0 | AK61: 0 | AL61: 0 | AM61: 0 | AN61: 0 | AO61: 0 | AP61: 0 | AQ61: 0 | AR61: 5085 | AS61: 0 | AT61: 0 | AU61: 0 | AV61: 0 | AW61: 0
B62: Act. 4.1.2 | C62: Elaboración de materiales varios | E62: Global | F62: 1 | G62: 10000 | H62: =+G62*F62 -> 10000 | I62: 0.8475 | J62: =+I62*H62 -> 8475 | L62: 0 | M62: 0 | N62: 0 | O62: 0.2 | P62: 0.2 | Q62: 0.3 | R62: 0.3 | S62: 0 | V62: 0 | W62: 0 | X62: 0 | Y62: 0.2 | Z62: 0.2 | AA62: 0.3 | AB62: 0.3 | AC62: 0 | AF62: 0 | AG62: 0 | AH62: 0 | AI62: 2000 | AJ62: 2000 | AK62: 3000 | AL62: 3000 | AM62: 0 | AN62: 0 | AO62: 0 | AP62: 0 | AQ62: 0 | AR62: 1695 | AS62: 1695 | AT62: 2542.5 | AU62: 2542.5 | AV62: 0 | AW62: 0
B63: Acción 4.2 | C63: … | H63: =+SUM(H64:H66) -> 128000 | J63: =+SUM(J64:J66) -> 110800 | AF63: =+SUM(AF64:AF66) -> 0 | AG63: 0 | AH63: 0 | AI63: 25600 | AJ63: 25600 | AK63: 38400 | AL63: 38400 | AM63: 0 | AN63: 0 | AO63: =+SUM(AO64:AO66) -> 0 | AP63: 0 | AQ63: 0 | AR63: 22160 | AS63: 22160 | AT63: 33240 | AU63: 33240 | AV63: 0 | AW63: 0
B64: Act. 4.2.1 | C64: Facilitador Intercultural (comunicador) | E64: Mes | F64: 8 | G64: 4000 | H64: =+G64*F64 -> 32000 | I64: 0.92 | J64: =+I64*H64 -> 29440 | L64: 0 | M64: 0 | N64: 0 | O64: 0.2 | P64: 0.2 | Q64: 0.3 | R64: 0.3 | S64: 0 | V64: =+L64 -> 0 | W64: 0 | X64: 0 | Y64: 0.2 | Z64: 0.2 | AA64: 0.3 | AB64: 0.3 | AC64: 0 | AF64: =+L64*$H64 -> 0 | AG64: 0 | AH64: 0 | AI64: 6400 | AJ64: 6400 | AK64: 9600 | AL64: 9600 | AM64: 0 | AN64: 0 | AO64: =+L64*$J64 -> 0 | AP64: 0 | AQ64: 0 | AR64: 5888 | AS64: 5888 | AT64: 8832 | AU64: 8832 | AV64: 0 | AW64: 0
B65: Act. 4.2.2 | C65: Presentación pública del Proceso de ZF | E65: Taller | F65: 12 | G65: =+G8 -> 4000 | H65: =+G65*F65 -> 48000 | I65: 0.8475 | J65: =+I65*H65 -> 40680 | L65: 0 | M65: 0 | N65: 0 | O65: 0.2 | P65: 0.2 | Q65: 0.3 | R65: 0.3 | S65: 0 | V65: 0 | W65: 0 | X65: 0 | Y65: 0.2 | Z65: 0.2 | AA65: 0.3 | AB65: 0.3 | AC65: 0 | AF65: 0 | AG65: 0 | AH65: 0 | AI65: 9600 | AJ65: 9600 | AK65: 14400 | AL65: 14400 | AM65: 0 | AN65: 0 | AO65: 0 | AP65: 0 | AQ65: 0 | AR65: 8136 | AS65: 8136 | AT65: 12204 | AU65: 12204 | AV65: 0 | AW65: 0
B66: Act. 4.2.3 | C66: Talleres de difusión y sensibilización en cada provincia | E66: Taller | F66: 12 | G66: =+G65 -> 4000 | H66: =+G66*F66 -> 48000 | I66: 0.8475 | J66: =+I66*H66 -> 40680 | L66: 0 | M66: 0 | N66: 0 | O66: 0.2 | P66: 0.2 | Q66: 0.3 | R66: 0.3 | S66: 0 | V66: 0 | W66: 0 | X66: 0 | Y66: 0.2 | Z66: 0.2 | AA66: 0.3 | AB66: 0.3 | AC66: 0 | AF66: 0 | AG66: 0 | AH66: 0 | AI66: 9600 | AJ66: 9600 | AK66: 14400 | AL66: 14400 | AM66: 0 | AN66: 0 | AO66: 0 | AP66: 0 | AQ66: 0 | AR66: 8136 | AS66: 8136 | AT66: 12204 | AU66: 12204 | AV66: 0 | AW66: 0
B67: COMPONENTE 5.Adecuados mecanismos y espacios de participación en el proceso de ZF | H67: =+H68+H72 -> 259600 | J67: =+J68+J72 -> 220011 | AF67: =+AF68+AF72 -> 0 | AG67: 0 | AH67: 129800 | AI67: 0 | AJ67: 0 | AK67: 51920 | AL67: 51920 | AM67: 25960 | AN67: 0 | AO67: =+AO68+AO72 -> 0 | AP67: 0 | AQ67: 110005.5 | AR67: 0 | AS67: 0 | AT67: 44002.2 | AU67: 44002.2 | AV67: 22001.1 | AW67: 0
B68: Acción 5.1 | C68: … | H68: =+SUM(H69:H71) -> 129800 | J68: =+SUM(J69:J71) -> 110005.5 | AF68: =+SUM(AF69:AF71) -> 0 | AG68: 0 | AH68: 0 | AI68: 0 | AJ68: 0 | AK68: 51920 | AL68: 51920 | AM68: 25960 | AN68: 0 | AO68: =+SUM(AO69:AO71) -> 0 | AP68: 0 | AQ68: 0 | AR68: 0 | AS68: 0 | AT68: 44002.2 | AU68: 44002.2 | AV68: 22001.1 | AW68: 0
B69: Act. 5.1.1 | C69: Materiales | E69: Global | F69: 1 | G69: 5000 | H69: =+G69*F69 -> 5000 | I69: 0.8475 | J69: =+I69*H69 -> 4237.5 | L69: 0 | M69: 0 | N69: 0 | O69: 0 | P69: 0 | Q69: 0.4 | R69: 0.4 | S69: 0.2 | V69: =+L69 -> 0 | W69: 0 | X69: 0 | Y69: 0 | Z69: 0 | AA69: 0.4 | AB69: 0.4 | AC69: 0.2 | AF69: =+L69*$H69 -> 0 | AG69: 0 | AH69: 0 | AI69: 0 | AJ69: 0 | AK69: 2000 | AL69: 2000 | AM69: 1000 | AN69: 0 | AO69: =+L69*$J69 -> 0 | AP69: 0 | AQ69: 0 | AR69: 0 | AS69: 0 | AT69: 1695 | AU69: 1695 | AV69: 847.5 | AW69: 0
B70: Act. 5.1.2 | C70: Talleres | E70: Taller | F70: 12 | G70: =+G8 -> 4000 | H70: =+G70*F70 -> 48000 | I70: 0.8475 | J70: 40680 | L70: 0 | M70: 0 | N70: 0 | O70: 0 | P70: 0 | Q70: 0.4 | R70: 0.4 | S70: 0.2 | V70: 0 | W70: 0 | X70: 0 | Y70: 0 | Z70: 0 | AA70: 0.4 | AB70: 0.4 | AC70: 0.2 | AF70: 0 | AG70: 0 | AH70: 0 | AI70: 0 | AJ70: 0 | AK70: 19200 | AL70: 19200 | AM70: 9600 | AN70: =+H70-SUM(AF70:AM70) -> 0 | AO70: 0 | AP70: 0 | AQ70: 0 | AR70: 0 | AS70: 0 | AT70: 16272 | AU70: 16272 | AV70: 8136 | AW70: =+J70-SUM(AO70:AV70) -> 0
B71: Act. 5.1.3 | C71: Viáticos | E71: día/persona | F71: =20*F70 -> 240 | G71: =+G23 -> 320 | H71: 76800 | I71: 0.8475 | J71: 65088 | L71: 0 | M71: 0 | N71: 0 | O71: 0 | P71: 0 | Q71: 0.4 | R71: 0.4 | S71: 0.2 | V71: 0 | W71: 0 | X71: 0 | Y71: 0 | Z71: 0 | AA71: 0.4 | AB71: 0.4 | AC71: 0.2 | AF71: 0 | AG71: 0 | AH71: 0 | AI71: 0 | AJ71: 0 | AK71: 30720 | AL71: 30720 | AM71: 15360 | AN71: 0 | AO71: 0 | AP71: 0 | AQ71: 0 | AR71: 0 | AS71: 0 | AT71: 26035.2 | AU71: 26035.2 | AV71: 13017.6 | AW71: 0
B72: Acción 5.2 | C72: … | H72: =+SUM(H73:H75) -> 129800 | J72: =+SUM(J73:J75) -> 110005.5 | AF72: =+SUM(AF73:AF75) -> 0 | AG72: 0 | AH72: 129800 | AI72: 0 | AJ72: 0 | AK72: 0 | AL72: 0 | AM72: 0 | AN72: 0 | AO72: =+SUM(AO73:AO75) -> 0 | AP72: 0 | AQ72: 110005.5 | AR72: 0 | AS72: 0 | AT72: 0 | AU72: 0 | AV72: 0 | AW72: 0
B73: Act. 5.1.1 | C73: Materiales | E73: Global | F73: 1 | G73: 5000 | H73: =+G73*F73 -> 5000 | I73: 0.8475 | J73: =+I73*H73 -> 4237.5 | L73: 0 | M73: 0 | N73: 1 | O73: 0 | P73: 0 | Q73: 0 | R73: 0 | S73: 0 | V73: =+L73 -> 0 | W73: 0 | X73: 1 | Y73: 0 | Z73: 0 | AA73: 0 | AB73: 0 | AC73: 0 | AF73: =+L73*$H73 -> 0 | AG73: 0 | AH73: 5000 | AI73: 0 | AJ73: 0 | AK73: 0 | AL73: 0 | AM73: 0 | AN73: 0 | AO73: =+L73*$J73 -> 0 | AP73: 0 | AQ73: 4237.5 | AR73: 0 | AS73: 0 | AT73: 0 | AU73: 0 | AV73: 0 | AW73: 0
B74: Act. 5.1.2 | C74: Talleres | E74: Taller | F74: 12 | G74: =+G70 -> 4000 | H74: =+G74*F74 -> 48000 | I74: 0.8475 | J74: 40680 | L74: 0 | M74: 0 | N74: 1 | O74: 0 | P74: 0 | Q74: 0 | R74: 0 | S74: 0 | V74: 0 | W74: 0 | X74: 1 | Y74: 0 | Z74: 0 | AA74: 0 | AB74: 0 | AC74: 0 | AF74: 0 | AG74: 0 | AH74: 48000 | AI74: 0 | AJ74: 0 | AK74: 0 | AL74: 0 | AM74: 0 | AN74: 0 | AO74: 0 | AP74: 0 | AQ74: 40680 | AR74: 0 | AS74: 0 | AT74: 0 | AU74: 0 | AV74: 0 | AW74: 0
B75: Act. 5.1.3 | C75: Viáticos | E75: día/persona | F75: =20*F74 -> 240 | G75: =+G71 -> 320 | H75: 76800 | I75: 0.8475 | J75: 65088 | L75: 0 | M75: 0 | N75: 1 | O75: 0 | P75: 0 | Q75: 0 | R75: 0 | S75: 0 | V75: 0 | W75: 0 | X75: 1 | Y75: 0 | Z75: 0 | AA75: 0 | AB75: 0 | AC75: 0 | AF75: 0 | AG75: 0 | AH75: 76800 | AI75: 0 | AJ75: 0 | AK75: 0 | AL75: 0 | AM75: 0 | AN75: 0 | AO75: 0 | AP75: 0 | AQ75: 65088 | AR75: 0 | AS75: 0 | AT75: 0 | AU75: 0 | AV75: 0 | AW75: 0
B77: GESTIÓN DEL PROYECTO | H77: =+SUM(H78:H90) -> 297900 | J77: =+SUM(J78:J90) -> 270738.3051 | AF77: =+SUM(AF78:AF90) -> 31500 | AG77: =+SUM(AG78:AG90) -> 37985.71429 | AH77: 37985.71429 | AI77: 37985.71429 | AJ77: 37985.71429 | AK77: 37985.71429 | AL77: 37985.71429 | AM77: 38485.71429 | AN77: 0 | AO77: =+SUM(AO78:AO90) -> 28980 | AP77: 34476.36804 | AQ77: 34476.36804 | AR77: 34476.36804 | AS77: 34476.36804 | AT77: 34476.36804 | AU77: 34476.36804 | AV77: 34900.09685 | AW77: 0
B78: Act.1 | C78: Expediente Técnico | AN78: 0 | AW78: 0
B79: Act.2 | C79: Supervisión | AN79: 0 | AW79: 0
B80: Act.3 | C80: Liquidación del Proyecto | AN80: 0 | AW80: 0
B81: Act.4 | C81: Personal | AN81: 0 | AW81: 0
C82: Act. 4.1 | D82: Jefe de Proyecto | E82: mes | F82: =12*2 -> 24 | G82: 7000 | H82: =+G82*F82 -> 168000 | I82: 0.92 | J82: =+I82*H82 -> 154560 | L82: 0.125 | M82: 0.125 | N82: 0.125 | O82: 0.125 | P82: 0.125 | Q82: 0.125 | R82: 0.125 | S82: 0.125 | V82: =+L82 -> 0.125 | W82: 0.125 | X82: 0.125 | Y82: 0.125 | Z82: 0.125 | AA82: 0.125 | AB82: 0.125 | AC82: 0.125 | AF82: =+L82*$H82 -> 21000 | AG82: 21000 | AH82: 21000 | AI82: 21000 | AJ82: 21000 | AK82: 21000 | AL82: 21000 | AM82: 21000 | AN82: 0 | AO82: =+L82*$J82 -> 19320 | AP82: 19320 | AQ82: 19320 | AR82: 19320 | AS82: 19320 | AT82: 19320 | AU82: 19320 | AV82: 19320 | AW82: 0
C83: Act. 4.2 | D83: Administrador | E83: mes | F83: =12*2 -> 24 | G83: 3500 | H83: =+G83*F83 -> 84000 | I83: 0.92 | J83: =+I83*H83 -> 77280 | L83: 0.125 | M83: 0.125 | N83: 0.125 | O83: 0.125 | P83: 0.125 | Q83: 0.125 | R83: 0.125 | S83: 0.125 | V83: 0.125 | W83: 0.125 | X83: 0.125 | Y83: 0.125 | Z83: 0.125 | AA83: 0.125 | AB83: 0.125 | AC83: 0.125 | AF83: 10500 | AG83: 10500 | AH83: 10500 | AI83: 10500 | AJ83: 10500 | AK83: 10500 | AL83: 10500 | AM83: 10500 | AN83: 0 | AO83: 9660 | AP83: 9660 | AQ83: 9660 | AR83: 9660 | AS83: 9660 | AT83: 9660 | AU83: 9660 | AV83: 9660 | AW83: 0
C84: Act. 4.3 | D84: Asistente | AN84: 0 | AW84: 0
B85: Act.5 | C85: Gastos Administrativos | AN85: 0 | AW85: 0
C86: Act. 5.1 | D86: Courier (Remisión de expediente a SERFOR/MINAM) | E86: Global | F86: 1 | G86: 500 | H86: =+G86*F86 -> 500 | I86: =1/(1.18) -> 0.8474576271 | J86: =+I86*H86 -> 423.7288136 | L86: 0 | M86: 0 | N86: 0 | O86: 0 | P86: 0 | Q86: 0 | R86: 0 | S86: 1 | V86: =+L86 -> 0 | W86: 0 | X86: 0 | Y86: 0 | Z86: 0 | AA86: 0 | AB86: 0 | AC86: 1 | AF86: =+L86*$H86 -> 0 | AG86: 0 | AH86: 0 | AI86: 0 | AJ86: 0 | AK86: 0 | AL86: 0 | AM86: 500 | AN86: 0 | AO86: =+L86*$J86 -> 0 | AP86: 0 | AQ86: 0 | AR86: 0 | AS86: 0 | AT86: 0 | AU86: 0 | AV86: 423.7288136 | AW86: 0
C87: Act. 5.2 | D87: Pasajes aéreos (I/V) / Asistencia Técnica Serfor | E87: Pasaje | F87: 40 | G87: =150*3.3 -> 495 | H87: =+G87*F87 -> 19800 | I87: 0.8474576271 | J87: =+I87*H87 -> 16779.66102 | L87: 0 | M87: 0.1428571429 | N87: =+M87 -> 0.1428571429 | O87: 0.1428571429 | P87: 0.1428571429 | Q87: 0.1428571429 | R87: 0.1428571429 | S87: 0.1428571429 | V87: 0 | W87: 0.1428571429 | X87: 0.1428571429 | Y87: 0.1428571429 | Z87: 0.1428571429 | AA87: 0.1428571429 | AB87: 0.1428571429 | AC87: 0.1428571429 | AF87: 0 | AG87: 2828.571429 | AH87: 2828.571429 | AI87: 2828.571429 | AJ87: 2828.571429 | AK87: 2828.571429 | AL87: 2828.571429 | AM87: 2828.571429 | AN87: 0 | AO87: 0 | AP87: 2397.094431 | AQ87: 2397.094431 | AR87: 2397.094431 | AS87: 2397.094431 | AT87: 2397.094431 | AU87: 2397.094431 | AV87: 2397.094431 | AW87: 0
C88: Act. 5.3 | D88: Viáticos / Asistencia Técnica Serfor | E88: día/persona | F88: 80 | G88: 320 | H88: =+G88*F88 -> 25600 | I88: 0.8474576271 | J88: =+I88*H88 -> 21694.91525 | L88: 0 | M88: 0.1428571429 | N88: 0.1428571429 | O88: 0.1428571429 | P88: 0.1428571429 | Q88: 0.1428571429 | R88: 0.1428571429 | S88: 0.1428571429 | V88: 0 | W88: 0.1428571429 | X88: 0.1428571429 | Y88: 0.1428571429 | Z88: 0.1428571429 | AA88: 0.1428571429 | AB88: 0.1428571429 | AC88: 0.1428571429 | AF88: 0 | AG88: 3657.142857 | AH88: 3657.142857 | AI88: 3657.142857 | AJ88: 3657.142857 | AK88: 3657.142857 | AL88: 3657.142857 | AM88: 3657.142857 | AN88: 0 | AO88: 0 | AP88: 3099.273608 | AQ88: 3099.273608 | AR88: 3099.273608 | AS88: 3099.273608 | AT88: 3099.273608 | AU88: 3099.273608 | AV88: 3099.273608 | AW88: 0
C89: Act. 5.4 | D89: Otros gastos | AN89: 0 | AW89: 0
AN90: 0 | AW90: 0
B91: Costo Total de Inversión | H91: =+H67+H53+H43+H35+H5+H77 -> 3753623.96 | J91: =+J67+J53+J43+J35+J5+J77 -> 3229512.809 | AF91: =+AF67+AF53+AF43+AF35+AF5+AF77 -> 313101.96 | AG91: 815879.7143 | AH91: 598396.381 | AI91: 619491.381 | AJ91: 668843.381 | AK91: 263155.7143 | AL91: 188155.7143 | AM91: 286599.7143 | AN91: =+H91-SUM(AF91:AM91) -> 0 | AO91: =+AO67+AO53+AO43+AO35+AO5+AO77 -> 271107.7627 | AP91: 697190.6053 | AQ91: 512888.1957 | AR91: 531225.7423 | AS91: 573048.9627 | AT91: 229480.7651 | AU91: 165921.443 | AV91: 248649.3324 | AW91: 0

Sheet Hoja1 (hidden)
C2: Sí | D2: 1 | E2: Celda vinculada
C3: No | D3: 0
C5: Sí | D5: 1 | E5: Celda vinculada
C6: No | D6: 0
C8: Sí | D8: 1 | E8: Celda vinculada
C9: No | D9: 0
G10: 0
C11: Sí | D11: 1 | E11: Celda vinculada | G11: 1
C12: No | D12: 0 | E12: 3 | G12: 2
G13: 3
C14: Sí | D14: 1 | E14: Celda vinculada | G14: 4
C15: No | D15: 0 | E15: 3 | G15: 5
G16: 6
C17: Sí | D17: 1 | E17: Celda vinculada | G17: 7
C18: No | D18: 0 | G18: 8
G19: 9
C20: Sí | D20: 1 | E20: Celda vinculada | G20: 10
C21: No | D21: 0
C23: Sí | D23: 1 | E23: Celda vinculada
C24: No | D24: 0
C26: Sí | D26: 1 | E26: Celda vinculada
C27: No | D27: 0
C29: Sí | D29: 1 | E29: Celda vinculada
C30: No | D30: 0

Sheet Hoja2 (hidden)
B3: Cooperante
B4: Beneficiario
B5: Oponente
B6: Perjudicado
O11: 8 | Q11: 1 | S11: 1
O12: 1 | Q12: 1 | S12: 1
O13: 1 | Q13: 1 | S13: 1
O14: 1 | Q14: 1 | S14: 1
O15: 1 | Q15: 1 | S15: 1
O16: 1 | Q16: 1 | S16: 1
O17: 1 | Q17: 1 | S17: 1
O18: 1 | Q18: 1 | S18: 1
O19: 1 | Q19: 1 | S19: 1
O20: 1 | Q20: 1 | S20: 1
O21: 1 | Q21: 1 | S21: 1
O22: 1 | Q22: 1 | S22: 1
O23: 1 | Q23: 1 | S23: 1
O24: 1 | Q24: 1 | S24: 1
B31: Especificaciones técnicas
B32: Garantía del servicio de mantenimiento a los equipos
B33: Grado de dependencia del proveedor
B34: Entrenamiento que brindará el proveedor
B35: Obsolescencia tecnológica
B36: Seguridad industrial y riesgos ambientales asociados
B37: Condiciones climáticas y físicas
B38: Disponibilidad de recursos
